[Event "*** SCC Grand Prix: Titled Tuesday Blitz"]
[Site "Chess.com"]
[Date "2020.09.08"]
[Round "10"]
[White "jamalm2"]
[Black "Cambek64"]
[Result "0-1"]
[WhiteElo "1903"]
[BlackElo "2245"]
[TimeControl "180+1"]
[EndTime "11:56:14 PDT"]
[Termination "Cambek64 won by checkmate"]

1. Nf3 {[%clk 0:03:00.1]} 1... f5 {[%clk 0:02:58.4]} 2. c4 {[%clk 0:03:00.1]}
2... Nf6 {[%clk 0:02:58.6]} 3. b3 {[%clk 0:03:00]} 3... g6 {[%clk 0:02:59]} 4.
Bb2 {[%clk 0:02:59.9]} 4... Bg7 {[%clk 0:02:59.4]} 5. e3 {[%clk 0:03:00]} 5...
O-O {[%clk 0:02:59.8]} 6. d4 {[%clk 0:02:59.6]} 6... d6 {[%clk 0:03:00]} 7. Be2
{[%clk 0:02:58.9]} 7... Qe8 {[%clk 0:02:59.8]} 8. O-O {[%clk 0:02:55.9]} 8... c6
{[%clk 0:02:59]} 9. d5 {[%clk 0:02:50.8]} 9... c5 {[%clk 0:02:52.7]} 10. Ng5
{[%clk 0:02:40.9]} 10... Na6 {[%clk 0:02:52.3]} 11. Nc3 {[%clk 0:02:31.3]} 11...
Nc7 {[%clk 0:02:50.6]} 12. Nb5 {[%clk 0:02:27.8]} 12... Nxb5 {[%clk 0:02:46.8]}
13. cxb5 {[%clk 0:02:25.9]} 13... h6 {[%clk 0:02:38.2]} 14. Ne6 {[%clk 0:02:25]}
14... Bxe6 {[%clk 0:02:38.5]} 15. dxe6 {[%clk 0:02:24.5]} 15... Qc8 {[%clk
0:02:38.5]} 16. Bc4 {[%clk 0:02:22.7]} 16... d5 {[%clk 0:02:31]} 17. Bxd5 {[%clk
0:02:16.6]} 17... Rd8 {[%clk 0:02:30.5]} 18. Bxf6 {[%clk 0:02:13.6]} 18... Bxf6
{[%clk 0:02:29.9]} 19. Qf3 {[%clk 0:02:10.4]} 19... Rb8 {[%clk 0:02:27.7]} 20.
Rad1 {[%clk 0:02:07.1]} 20... Qc7 {[%clk 0:02:24.3]} 21. Bc4 {[%clk 0:02:02.6]}
21... Kg7 {[%clk 0:02:21.6]} 22. h4 {[%clk 0:01:58.3]} 22... Bxh4 {[%clk
0:02:09.9]} 23. e4 {[%clk 0:01:53.9]} 23... Qe5 {[%clk 0:01:58.8]} 24. Rxd8
{[%clk 0:01:46.2]} 24... Rxd8 {[%clk 0:01:54.2]} 25. exf5 {[%clk 0:01:45.1]}
25... Qxf5 {[%clk 0:01:49.8]} 26. Qxb7 {[%clk 0:01:40.8]} 26... Rd2 {[%clk
0:01:49.2]} 27. g3 {[%clk 0:01:32.7]} 27... Bf6 {[%clk 0:01:40]} 28. Kg2 {[%clk
0:01:16.2]} 28... Qg5 {[%clk 0:01:34.8]} 29. Qf3 {[%clk 0:01:13.6]} 29... h5
{[%clk 0:01:33]} 30. Rd1 {[%clk 0:01:11.5]} 30... Rxa2 {[%clk 0:01:28.3]} 31.
Rd7 {[%clk 0:01:07.7]} 31... h4 {[%clk 0:01:06]} 32. Rd5 {[%clk 0:01:02.3]}
32... Qc1 {[%clk 0:00:53.1]} 33. Rd8 {[%clk 0:00:57.7]} 33... Ra1 {[%clk
0:00:51.2]} 34. Kh3 {[%clk 0:00:51.3]} 34... hxg3 {[%clk 0:00:45.9]} 35. fxg3
{[%clk 0:00:49.3]} 35... Ra2 {[%clk 0:00:36.3]} 36. Qa8 {[%clk 0:00:38.3]} 36...
Qh6+ {[%clk 0:00:34.5]} 37. Kg4 {[%clk 0:00:34.1]} 37... Qh5+ {[%clk 0:00:34.8]}
38. Kf4 {[%clk 0:00:33.3]} 38... Qf5+ {[%clk 0:00:34.9]} 39. Ke3 {[%clk
0:00:31.6]} 39... Bg5# {[%clk 0:00:35.2]} 0-1

[Event "*** SCC Grand Prix: Titled Tuesday Blitz"]
[Site "Chess.com"]
[Date "2020.09.08"]
[Round "10"]
[White "SergeyKarjakin"]
[Black "Sanan_Sjugirov"]
[Result "1-0"]
[WhiteElo "2968"]
[BlackElo "2839"]
[TimeControl "180+1"]
[EndTime "11:56:19 PDT"]
[Termination "SergeyKarjakin won by resignation"]

1. b3 {[%clk 0:03:00.9]} 1... d5 {[%clk 0:02:57.5]} 2. Bb2 {[%clk 0:03:01.8]}
2... Bg4 {[%clk 0:02:57.4]} 3. h3 {[%clk 0:03:00.3]} 3... Bh5 {[%clk 0:02:57.4]}
4. g3 {[%clk 0:02:59.5]} 4... e6 {[%clk 0:02:53.6]} 5. Bg2 {[%clk 0:02:59.8]}
5... Nf6 {[%clk 0:02:50.7]} 6. Nf3 {[%clk 0:02:59.7]} 6... c5 {[%clk 0:02:46.6]}
7. c4 {[%clk 0:02:41.8]} 7... Nc6 {[%clk 0:02:39.3]} 8. cxd5 {[%clk 0:02:41]}
8... Nxd5 {[%clk 0:02:37.4]} 9. O-O {[%clk 0:02:40]} 9... Rc8 {[%clk 0:02:05]}
10. Na3 {[%clk 0:02:25.5]} 10... Nf6 {[%clk 0:01:50]} 11. Nc4 {[%clk 0:02:24.3]}
11... Be7 {[%clk 0:01:48.9]} 12. Nfe5 {[%clk 0:02:23.1]} 12... Nxe5 {[%clk
0:01:42.9]} 13. Nxe5 {[%clk 0:02:24]} 13... Rc7 {[%clk 0:01:28.7]} 14. d4 {[%clk
0:01:54.4]} 14... cxd4 {[%clk 0:01:26.8]} 15. g4 {[%clk 0:01:47.2]} 15... Bg6
{[%clk 0:01:25.9]} 16. Bxd4 {[%clk 0:01:47.6]} 16... Bc5 {[%clk 0:01:09.5]} 17.
Bc6+ {[%clk 0:01:08.5]} 17... bxc6 {[%clk 0:00:51]} 18. Bxc5 {[%clk 0:01:08.8]}
18... Qd5 {[%clk 0:00:47.8]} 19. Bd6 {[%clk 0:01:07]} 19... Rc8 {[%clk 0:00:44]}
20. Rc1 {[%clk 0:01:05.9]} 20... Ne4 {[%clk 0:00:37.3]} 21. Qxd5 {[%clk
0:01:05.8]} 21... exd5 {[%clk 0:00:37.8]} 22. Ba3 {[%clk 0:01:06.5]} 22... f6
{[%clk 0:00:16.2]} 23. Nxc6 {[%clk 0:01:02.9]} 23... Kd7 {[%clk 0:00:16.4]} 24.
Nxa7 {[%clk 0:00:56.2]} 24... Ra8 {[%clk 0:00:13.9]} 25. Nb5 {[%clk 0:00:49.6]}
25... Rhb8 {[%clk 0:00:12.9]} 26. Rc7+ {[%clk 0:00:49.4]} 26... Ke8 {[%clk
0:00:09.9]} 27. Rxg7 {[%clk 0:00:30.5]} 27... Rxa3 {[%clk 0:00:06.5]} 28. Rg8+
{[%clk 0:00:29.7]} 28... Kd7 {[%clk 0:00:05.7]} 29. Rxb8 {[%clk 0:00:29.4]}
29... Rxa2 {[%clk 0:00:06]} 30. Rc1 {[%clk 0:00:26.1]} 30... Rxe2 {[%clk
0:00:06]} 31. Rb7+ {[%clk 0:00:24.1]} 31... Ke6 {[%clk 0:00:05.5]} 32. Nd4+
{[%clk 0:00:23.9]} 1-0

[Event "*** SCC Grand Prix: Titled Tuesday Blitz"]
[Site "Chess.com"]
[Date "2020.09.08"]
[Round "10"]
[White "KatarinaOstojic"]
[Black "SilviusTiberius"]
[Result "1-0"]
[WhiteElo "2358"]
[BlackElo "2463"]
[TimeControl "180+1"]
[EndTime "11:56:19 PDT"]
[Termination "KatarinaOstojic won by resignation"]

1. d4 {[%clk 0:03:00.1]} 1... Nf6 {[%clk 0:02:59.5]} 2. Nf3 {[%clk 0:03:00.7]}
2... g6 {[%clk 0:02:59.7]} 3. Bg5 {[%clk 0:03:00.6]} 3... Bg7 {[%clk 0:02:59]}
4. Nbd2 {[%clk 0:03:01.2]} 4... c5 {[%clk 0:02:55]} 5. dxc5 {[%clk 0:02:59.9]}
5... Qa5 {[%clk 0:02:48.2]} 6. c3 {[%clk 0:02:59.5]} 6... Qxc5 {[%clk
0:02:47.5]} 7. Bxf6 {[%clk 0:02:57.5]} 7... Bxf6 {[%clk 0:02:46.9]} 8. Ne4
{[%clk 0:02:58]} 8... Qb6 {[%clk 0:02:47.1]} 9. Nxf6+ {[%clk 0:02:58.6]} 9...
Qxf6 {[%clk 0:02:47.6]} 10. Qd4 {[%clk 0:02:59]} 10... Qxd4 {[%clk 0:02:46.7]}
11. Nxd4 {[%clk 0:02:57.3]} 11... Nc6 {[%clk 0:02:44.5]} 12. Nxc6 {[%clk
0:02:55.9]} 12... bxc6 {[%clk 0:02:44.3]} 13. e4 {[%clk 0:02:56.8]} 13... a5
{[%clk 0:02:43.7]} 14. Bd3 {[%clk 0:02:55.8]} 14... d6 {[%clk 0:02:39.8]} 15.
O-O {[%clk 0:02:55.1]} 15... Be6 {[%clk 0:02:40]} 16. Rfe1 {[%clk 0:02:53.6]}
16... Kd7 {[%clk 0:02:39.5]} 17. f4 {[%clk 0:02:51.5]} 17... Rhb8 {[%clk
0:02:39.5]} 18. f5 {[%clk 0:02:48.9]} 18... gxf5 {[%clk 0:02:38.3]} 19. exf5
{[%clk 0:02:49.8]} 19... Bd5 {[%clk 0:02:38.5]} 20. c4 {[%clk 0:02:49.8]} 20...
Bxg2 {[%clk 0:02:30.7]} 21. Kxg2 {[%clk 0:02:48.5]} 21... Rxb2+ {[%clk
0:02:31.6]} 22. Re2 {[%clk 0:02:48.9]} 22... Rab8 {[%clk 0:02:30.5]} 23. Re1
{[%clk 0:02:47.7]} 23... Rxe2+ {[%clk 0:02:27.6]} 24. Rxe2 {[%clk 0:02:46.7]}
24... a4 {[%clk 0:02:28.5]} 25. Kf3 {[%clk 0:02:33.6]} 25... a3 {[%clk
0:02:25.5]} 26. Rc2 {[%clk 0:02:32.7]} 26... Rb1 {[%clk 0:02:21.3]} 27. Rc3
{[%clk 0:02:28.4]} 27... Rh1 {[%clk 0:02:14.6]} 28. Kg2 {[%clk 0:02:27.1]} 28...
Rd1 {[%clk 0:02:12.7]} 29. Rxa3 {[%clk 0:02:27.4]} 29... Rd2+ {[%clk 0:02:10.4]}
30. Kg3 {[%clk 0:02:25.5]} 30... d5 {[%clk 0:02:10]} 31. cxd5 {[%clk 0:02:13.7]}
31... cxd5 {[%clk 0:02:10]} 32. Ra7+ {[%clk 0:02:08.4]} 32... Kd6 {[%clk
0:02:10]} 33. Bb5 {[%clk 0:02:09.3]} 33... h5 {[%clk 0:01:52.4]} 34. a4 {[%clk
0:02:05.4]} 34... e5 {[%clk 0:01:50]} 35. Rxf7 {[%clk 0:01:49.3]} 35... e4
{[%clk 0:01:50.1]} 36. Rd7+ {[%clk 0:01:47.9]} 36... Ke5 {[%clk 0:01:49.9]} 37.
Bc6 {[%clk 0:01:39.2]} 37... d4 {[%clk 0:01:26.8]} 38. f6 {[%clk 0:01:31.8]}
38... e3 {[%clk 0:01:14.3]} 39. f7 {[%clk 0:01:27.1]} 39... Rf2 {[%clk
0:01:14.6]} 40. Bb5 {[%clk 0:01:22.3]} 40... h4+ {[%clk 0:01:08.5]} 41. Kxh4
{[%clk 0:01:20.1]} 41... Rxh2+ {[%clk 0:01:08.9]} 42. Kg3 {[%clk 0:01:20.3]}
42... Rf2 {[%clk 0:01:09.5]} 43. a5 {[%clk 0:01:08.6]} 43... Ke6 {[%clk
0:01:08.2]} 44. a6 {[%clk 0:00:57.1]} 44... d3 {[%clk 0:00:48.8]} 45. Rxd3
{[%clk 0:00:51.9]} 45... Kxf7 {[%clk 0:00:42.6]} 46. Rxe3 {[%clk 0:00:42.5]}
46... Rb2 {[%clk 0:00:35.4]} 47. a7 {[%clk 0:00:38.8]} 1-0

[Event "*** SCC Grand Prix: Titled Tuesday Blitz"]
[Site "Chess.com"]
[Date "2020.09.08"]
[Round "10"]
[White "PavelChernomordik"]
[Black "creativity"]
[Result "1-0"]
[WhiteElo "2356"]
[BlackElo "2109"]
[TimeControl "180+1"]
[EndTime "11:56:22 PDT"]
[Termination "PavelChernomordik won on time"]

1. e4 {[%clk 0:03:00.9]} 1... e5 {[%clk 0:02:57.5]} 2. Nf3 {[%clk 0:03:00.4]}
2... Nc6 {[%clk 0:02:56.9]} 3. Bc4 {[%clk 0:03:00.1]} 3... Nf6 {[%clk
0:02:56.4]} 4. Ng5 {[%clk 0:02:58.1]} 4... d5 {[%clk 0:02:56]} 5. exd5 {[%clk
0:02:56.7]} 5... b5 {[%clk 0:02:55.9]} 6. Bf1 {[%clk 0:02:54.4]} 6... Nd4 {[%clk
0:02:55.3]} 7. c3 {[%clk 0:02:49.4]} 7... Nxd5 {[%clk 0:02:54.5]} 8. Nxf7 {[%clk
0:02:39.6]} 8... Kxf7 {[%clk 0:02:51.8]} 9. cxd4 {[%clk 0:02:40]} 9... exd4
{[%clk 0:02:47.2]} 10. Qf3+ {[%clk 0:02:39.4]} 10... Nf6 {[%clk 0:02:22.5]} 11.
Bxb5 {[%clk 0:02:36.4]} 11... Rb8 {[%clk 0:01:56.9]} 12. Bc4+ {[%clk 0:02:34.6]}
12... Be6 {[%clk 0:01:49.7]} 13. Bxe6+ {[%clk 0:02:33.3]} 13... Kxe6 {[%clk
0:01:49]} 14. O-O {[%clk 0:02:32]} 14... Qd5 {[%clk 0:01:36.7]} 15. Qe2+ {[%clk
0:02:26]} 15... Kf7 {[%clk 0:01:35.6]} 16. d3 {[%clk 0:02:24.7]} 16... Bd6
{[%clk 0:01:33.8]} 17. Nd2 {[%clk 0:02:17.7]} 17... Rhe8 {[%clk 0:01:16.8]} 18.
Qd1 {[%clk 0:02:12.1]} 18... Re7 {[%clk 0:00:45.3]} 19. h3 {[%clk 0:02:05.3]}
19... Rbe8 {[%clk 0:00:44.2]} 20. Qb3 {[%clk 0:02:03.1]} 20... Re2 {[%clk
0:00:36.3]} 21. Nf3 {[%clk 0:01:56.3]} 21... c5 {[%clk 0:00:16.3]} 22. Bg5
{[%clk 0:01:53.1]} 22... Rb8 {[%clk 0:00:12.6]} 23. Qxd5+ {[%clk 0:01:41.5]}
23... Nxd5 {[%clk 0:00:12.3]} 24. b3 {[%clk 0:01:35]} 24... Nb4 {[%clk
0:00:10.9]} 25. Rfd1 {[%clk 0:01:28.5]} 25... h6 {[%clk 0:00:09.5]} 26. Bh4
{[%clk 0:01:23.8]} 26... g5 {[%clk 0:00:08.7]} 27. Bg3 {[%clk 0:01:22.2]} 27...
Bxg3 {[%clk 0:00:08.1]} 28. fxg3 {[%clk 0:01:21.3]} 28... Rbe8 {[%clk
0:00:07.5]} 29. Rac1 {[%clk 0:01:13.4]} 29... Rxa2 {[%clk 0:00:06.5]} 30. Rxc5
{[%clk 0:01:11.7]} 30... Ree2 {[%clk 0:00:05.5]} 31. Ne1 {[%clk 0:01:08]} 31...
a5 {[%clk 0:00:02.3]} 32. Rc4 {[%clk 0:01:01.8]} 32... Nd5 {[%clk 0:00:01.7]}
33. Rxd4 {[%clk 0:00:58.9]} 33... Ne3 {[%clk 0:00:02.6]} 34. Rc1 {[%clk
0:00:49.3]} 34... Nxg2 {[%clk 0:00:02]} 35. Re4 {[%clk 0:00:39.7]} 35... Rxe1+
{[%clk 0:00:01.4]} 36. Rcxe1 {[%clk 0:00:37.8]} 1-0

[Event "*** SCC Grand Prix: Titled Tuesday Blitz"]
[Site "Chess.com"]
[Date "2020.09.08"]
[Round "10"]
[White "dretch"]
[Black "ChessWarrior7197"]
[Result "0-1"]
[WhiteElo "2803"]
[BlackElo "2957"]
[TimeControl "180+1"]
[EndTime "11:56:25 PDT"]
[Termination "ChessWarrior7197 won by checkmate"]

1. d4 {[%clk 0:03:00.9]} 1... d5 {[%clk 0:03:00.4]} 2. c4 {[%clk 0:03:01.1]}
2... e6 {[%clk 0:03:01]} 3. Nc3 {[%clk 0:03:01.2]} 3... c5 {[%clk 0:03:01.5]} 4.
cxd5 {[%clk 0:03:00.2]} 4... exd5 {[%clk 0:03:02.4]} 5. Nf3 {[%clk 0:02:59.6]}
5... Nc6 {[%clk 0:03:02.9]} 6. g3 {[%clk 0:02:59.5]} 6... Nf6 {[%clk 0:03:03.5]}
7. Bg2 {[%clk 0:02:59.8]} 7... cxd4 {[%clk 0:03:04.4]} 8. Nxd4 {[%clk 0:03:00]}
8... Bc5 {[%clk 0:03:05.1]} 9. Nb3 {[%clk 0:02:58.3]} 9... Bb6 {[%clk
0:03:05.4]} 10. O-O {[%clk 0:02:57.7]} 10... d4 {[%clk 0:03:05.9]} 11. Na4
{[%clk 0:02:56.7]} 11... O-O {[%clk 0:03:06.2]} 12. Bf4 {[%clk 0:02:47.9]} 12...
Re8 {[%clk 0:03:02.9]} 13. Nbc5 {[%clk 0:02:40.1]} 13... Nd5 {[%clk 0:02:56.2]}
14. Rc1 {[%clk 0:02:31.9]} 14... Nxf4 {[%clk 0:02:47.5]} 15. gxf4 {[%clk
0:02:31.8]} 15... Qe7 {[%clk 0:02:46.2]} 16. Re1 {[%clk 0:02:22.7]} 16... Ba5
{[%clk 0:02:43.9]} 17. Rf1 {[%clk 0:02:15.5]} 17... Bg4 {[%clk 0:02:42.7]} 18.
Bf3 {[%clk 0:01:59.7]} 18... Bxf3 {[%clk 0:02:36]} 19. exf3 {[%clk 0:02:00.6]}
19... b5 {[%clk 0:02:19.6]} 20. Nd3 {[%clk 0:01:59.3]} 20... Rac8 {[%clk
0:02:01.7]} 21. Nac5 {[%clk 0:01:59.3]} 21... Qh4 {[%clk 0:01:58]} 22. Qb3
{[%clk 0:01:48]} 22... Qh3 {[%clk 0:01:48.1]} 23. Ne4 {[%clk 0:01:33]} 23...
Qxf3 {[%clk 0:01:27]} 24. Ng5 {[%clk 0:01:28]} 24... Qh5 {[%clk 0:01:18.2]} 25.
Qxb5 {[%clk 0:01:11.9]} 25... h6 {[%clk 0:01:06.3]} 26. Rxc6 {[%clk 0:01:04.6]}
26... hxg5 {[%clk 0:00:53.6]} 27. Ne5 {[%clk 0:00:45.4]} 27... Bb6 {[%clk
0:00:43.3]} 28. Rxc8 {[%clk 0:00:35]} 28... Rxc8 {[%clk 0:00:44.2]} 29. Qd7
{[%clk 0:00:34.1]} 29... Rd8 {[%clk 0:00:44.2]} 30. Qf5 {[%clk 0:00:32.6]} 30...
d3 {[%clk 0:00:28.1]} 31. Nxd3 {[%clk 0:00:18.3]} 31... Qf3 {[%clk 0:00:28.2]}
32. Ne1 {[%clk 0:00:14]} 32... Qe2 {[%clk 0:00:22.8]} 33. Qxg5 {[%clk 0:00:13]}
33... Rd1 {[%clk 0:00:20.2]} 34. Qe5 {[%clk 0:00:12.3]} 34... Bxf2+ {[%clk
0:00:16.6]} 35. Rxf2 {[%clk 0:00:11.8]} 35... Rxe1+ {[%clk 0:00:17]} 36. Kg2
{[%clk 0:00:11.8]} 36... Qg4# {[%clk 0:00:17.6]} 0-1

[Event "*** SCC Grand Prix: Titled Tuesday Blitz"]
[Site "Chess.com"]
[Date "2020.09.08"]
[Round "10"]
[White "Funo09"]
[Black "mishanick"]
[Result "0-1"]
[WhiteElo "2848"]
[BlackElo "3005"]
[TimeControl "180+1"]
[EndTime "11:56:25 PDT"]
[Termination "mishanick won by resignation"]

1. e4 {[%clk 0:03:00.9]} 1... c5 {[%clk 0:02:56]} 2. Nc3 {[%clk 0:03:01.2]} 2...
d6 {[%clk 0:02:56.4]} 3. Nf3 {[%clk 0:03:00.8]} 3... Nf6 {[%clk 0:02:56.1]} 4.
d4 {[%clk 0:03:00.9]} 4... cxd4 {[%clk 0:02:57]} 5. Nxd4 {[%clk 0:03:01.8]} 5...
a6 {[%clk 0:02:57.7]} 6. h3 {[%clk 0:03:01.3]} 6... b5 {[%clk 0:02:56.1]} 7. g4
{[%clk 0:02:59]} 7... Bb7 {[%clk 0:02:56.6]} 8. Bg2 {[%clk 0:02:59.2]} 8... Nc6
{[%clk 0:02:57.2]} 9. O-O {[%clk 0:02:56.5]} 9... Nxd4 {[%clk 0:02:56]} 10. Qxd4
{[%clk 0:02:57.4]} 10... e5 {[%clk 0:02:56.5]} 11. Qd3 {[%clk 0:02:55.1]} 11...
Be7 {[%clk 0:02:57]} 12. Bg5 {[%clk 0:02:42.1]} 12... O-O {[%clk 0:02:29.5]} 13.
Rad1 {[%clk 0:02:41.4]} 13... Qa5 {[%clk 0:02:25]} 14. a3 {[%clk 0:02:38.2]}
14... Rad8 {[%clk 0:02:13.4]} 15. b4 {[%clk 0:02:20]} 15... Qc7 {[%clk
0:02:11.7]} 16. Bxf6 {[%clk 0:02:20]} 16... Bxf6 {[%clk 0:02:12.5]} 17. a4
{[%clk 0:02:20.6]} 17... Rc8 {[%clk 0:02:03.3]} 18. Nd5 {[%clk 0:02:18.1]} 18...
Bxd5 {[%clk 0:02:03.3]} 19. exd5 {[%clk 0:01:59.4]} 19... bxa4 {[%clk
0:01:52.8]} 20. Be4 {[%clk 0:01:50.6]} 20... g6 {[%clk 0:01:45.7]} 21. Qxa6
{[%clk 0:01:49.1]} 21... Qc4 {[%clk 0:01:38.7]} 22. Qxd6 {[%clk 0:01:46]} 22...
Qxe4 {[%clk 0:01:22.9]} 23. Qxf6 {[%clk 0:01:45.5]} 23... Rxc2 {[%clk
0:01:22.4]} 24. d6 {[%clk 0:01:41.1]} 24... Rc6 {[%clk 0:01:00]} 25. Rfe1 {[%clk
0:01:32.3]} 25... Qxb4 {[%clk 0:00:59.9]} 26. Qxe5 {[%clk 0:01:25.8]} 26... a3
{[%clk 0:00:46.1]} 27. d7 {[%clk 0:01:20.6]} 27... Re6 {[%clk 0:00:46]} 28. d8=Q
{[%clk 0:00:52.5]} 28... Rxe5 {[%clk 0:00:40.7]} 29. Qxf8+ {[%clk 0:00:34.7]}
29... Kxf8 {[%clk 0:00:41.6]} 30. Rxe5 {[%clk 0:00:34.6]} 30... a2 {[%clk
0:00:33.1]} 31. Ree1 {[%clk 0:00:34.6]} 31... Qb2 {[%clk 0:00:29.9]} 32. Rd8+
{[%clk 0:00:31.2]} 32... Kg7 {[%clk 0:00:27.3]} 33. Ra8 {[%clk 0:00:32]} 33...
Kf6 {[%clk 0:00:25.5]} 34. Ra5 {[%clk 0:00:20.8]} 34... Qb4 {[%clk 0:00:17.9]}
35. Ra6+ {[%clk 0:00:20.4]} 35... Kg7 {[%clk 0:00:14.1]} 36. Ra1 {[%clk
0:00:19.4]} 36... Qb1+ {[%clk 0:00:14.3]} 0-1

[Event "*** SCC Grand Prix: Titled Tuesday Blitz"]
[Site "Chess.com"]
[Date "2020.09.08"]
[Round "10"]
[White "KaterynaLagno"]
[Black "Oligan22"]
[Result "1-0"]
[WhiteElo "2704"]
[BlackElo "2482"]
[TimeControl "180+1"]
[EndTime "11:56:26 PDT"]
[Termination "KaterynaLagno won on time"]

1. e4 {[%clk 0:03:00.9]} 1... c5 {[%clk 0:02:56.6]} 2. Nf3 {[%clk 0:03:00.4]}
2... e6 {[%clk 0:02:56.9]} 3. d4 {[%clk 0:02:59.8]} 3... cxd4 {[%clk 0:02:57.8]}
4. Nxd4 {[%clk 0:03:00.2]} 4... Nc6 {[%clk 0:02:58]} 5. Nc3 {[%clk 0:03:00.6]}
5... Qc7 {[%clk 0:02:58.3]} 6. Be3 {[%clk 0:02:58.9]} 6... a6 {[%clk 0:02:58]}
7. Be2 {[%clk 0:02:57.2]} 7... b5 {[%clk 0:02:56.7]} 8. Nxc6 {[%clk 0:02:54.1]}
8... Qxc6 {[%clk 0:02:57]} 9. Bf3 {[%clk 0:02:51.7]} 9... Qc7 {[%clk 0:02:50.1]}
10. O-O {[%clk 0:02:40.6]} 10... Bb7 {[%clk 0:02:50.4]} 11. a3 {[%clk
0:02:32.8]} 11... Bd6 {[%clk 0:02:30.6]} 12. g3 {[%clk 0:02:19.8]} 12... Be5
{[%clk 0:02:30.6]} 13. Bg2 {[%clk 0:02:15.6]} 13... Bxc3 {[%clk 0:01:58.6]} 14.
bxc3 {[%clk 0:02:14.6]} 14... Ne7 {[%clk 0:01:46.8]} 15. Bd4 {[%clk 0:01:56.2]}
15... e5 {[%clk 0:01:41.7]} 16. Be3 {[%clk 0:01:53.5]} 16... O-O {[%clk
0:01:34.8]} 17. a4 {[%clk 0:01:34.6]} 17... d6 {[%clk 0:01:15]} 18. axb5 {[%clk
0:01:28.6]} 18... axb5 {[%clk 0:01:15.9]} 19. Qd3 {[%clk 0:01:28.9]} 19... Bc6
{[%clk 0:00:36]} 20. Rfd1 {[%clk 0:01:27.2]} 20... Rxa1 {[%clk 0:00:35.5]} 21.
Rxa1 {[%clk 0:01:27]} 21... Ra8 {[%clk 0:00:34.5]} 22. Rxa8+ {[%clk 0:01:26.6]}
22... Bxa8 {[%clk 0:00:35.4]} 23. Qxb5 {[%clk 0:01:26.8]} 23... Bc6 {[%clk
0:00:30.3]} 24. Qb4 {[%clk 0:01:23.2]} 24... h6 {[%clk 0:00:26.4]} 25. h4 {[%clk
0:01:21.8]} 25... Bb7 {[%clk 0:00:19.2]} 26. c4 {[%clk 0:01:18.8]} 26... Nc6
{[%clk 0:00:19.2]} 27. Qb6 {[%clk 0:01:14.2]} 27... Qxb6 {[%clk 0:00:17.6]} 28.
Bxb6 {[%clk 0:01:15.1]} 28... Nb4 {[%clk 0:00:18]} 29. Bc7 {[%clk 0:01:09.3]}
29... Nxc2 {[%clk 0:00:15.9]} 30. Bxd6 {[%clk 0:01:09.8]} 30... f6 {[%clk
0:00:16.5]} 31. Bc5 {[%clk 0:01:07.6]} 31... Ba6 {[%clk 0:00:14.5]} 32. Bf1
{[%clk 0:01:05.2]} 32... Kf7 {[%clk 0:00:14.5]} 33. f3 {[%clk 0:00:51.9]} 33...
Ke6 {[%clk 0:00:11.7]} 34. Kf2 {[%clk 0:00:52.1]} 34... Na1 {[%clk 0:00:08]} 35.
Ke3 {[%clk 0:00:44.3]} 35... Nb3 {[%clk 0:00:08.2]} 36. Bb4 {[%clk 0:00:43.3]}
36... g6 {[%clk 0:00:04]} 37. f4 {[%clk 0:00:30.2]} 1-0

[Event "*** SCC Grand Prix: Titled Tuesday Blitz"]
[Site "Chess.com"]
[Date "2020.09.08"]
[Round "10"]
[White "Justinz"]
[Black "BUITRONGHAO"]
[Result "1-0"]
[WhiteElo "2424"]
[BlackElo "2540"]
[TimeControl "180+1"]
[EndTime "11:56:29 PDT"]
[Termination "Justinz won on time"]

1. e4 {[%clk 0:02:57.6]} 1... c6 {[%clk 0:02:58.5]} 2. d4 {[%clk 0:02:57.1]}
2... d5 {[%clk 0:02:58.8]} 3. e5 {[%clk 0:02:56.8]} 3... Bf5 {[%clk 0:02:58.6]}
4. h4 {[%clk 0:02:57]} 4... h5 {[%clk 0:02:58.3]} 5. c4 {[%clk 0:02:56.1]} 5...
e6 {[%clk 0:02:57.1]} 6. Nc3 {[%clk 0:02:55]} 6... Ne7 {[%clk 0:02:56.3]} 7.
Nge2 {[%clk 0:02:53.5]} 7... Ng6 {[%clk 0:02:39.2]} 8. Bg5 {[%clk 0:02:48.3]}
8... Be7 {[%clk 0:02:35.6]} 9. Bxe7 {[%clk 0:02:45.7]} 9... Qxe7 {[%clk
0:02:36.5]} 10. Ng3 {[%clk 0:02:15.4]} 10... Nxh4 {[%clk 0:02:25.2]} 11. Nxh5
{[%clk 0:01:58.8]} 11... Kf8 {[%clk 0:02:17.4]} 12. g4 {[%clk 0:01:46.3]} 12...
Be4 {[%clk 0:02:09.7]} 13. Rh3 {[%clk 0:01:35.5]} 13... Bg2 {[%clk 0:01:41.5]}
14. cxd5 {[%clk 0:01:07.7]} 14... Bxd5 {[%clk 0:01:24.1]} 15. Nxd5 {[%clk
0:01:03.4]} 15... cxd5 {[%clk 0:01:20.7]} 16. Qd2 {[%clk 0:01:03.4]} 16... Nc6
{[%clk 0:01:13]} 17. O-O-O {[%clk 0:01:01.4]} 17... Rc8 {[%clk 0:00:53.3]} 18.
Kb1 {[%clk 0:01:00.1]} 18... Ng6 {[%clk 0:00:37.3]} 19. f4 {[%clk 0:00:54.7]}
19... Qb4 {[%clk 0:00:15.2]} 20. Rc3 {[%clk 0:00:53]} 20... Nge7 {[%clk
0:00:12.8]} 21. a3 {[%clk 0:00:51.4]} 21... Qb6 {[%clk 0:00:13.1]} 22. Qc2
{[%clk 0:00:28.7]} 22... Ng8 {[%clk 0:00:11.3]} 23. f5 {[%clk 0:00:25.7]} 23...
Nge7 {[%clk 0:00:08.2]} 24. fxe6 {[%clk 0:00:23]} 24... fxe6 {[%clk 0:00:07.3]}
25. Rf3+ {[%clk 0:00:19.7]} 25... Ke8 {[%clk 0:00:07.8]} 26. Qf2 {[%clk
0:00:19.4]} 26... Kd7 {[%clk 0:00:07.7]} 27. Nxg7 {[%clk 0:00:19]} 27... Rcg8
{[%clk 0:00:07.2]} 28. Nh5 {[%clk 0:00:18.7]} 28... Rxg4 {[%clk 0:00:07.1]} 29.
Nf6+ {[%clk 0:00:18.8]} 29... Kc8 {[%clk 0:00:06.9]} 30. Nxg4 {[%clk 0:00:19.7]}
30... Nf5 {[%clk 0:00:06.7]} 31. Rxf5 {[%clk 0:00:18.5]} 31... exf5 {[%clk
0:00:06.9]} 32. Qxf5+ {[%clk 0:00:19.4]} 32... Kb8 {[%clk 0:00:07.6]} 33. e6
{[%clk 0:00:18.8]} 33... Re8 {[%clk 0:00:06.5]} 34. Nf6 {[%clk 0:00:18.7]} 34...
Re7 {[%clk 0:00:02.4]} 35. Nxd5 {[%clk 0:00:18.7]} 1-0